[Event "SixDays GM March 2024"]
[Site "Budapest"]
[Date "2024.04.03"]
[Round "8.2"]
[White "Mihok, Oliver"]
[Black "Pribelszky, Bence"]
[Result "0-1"]
[ECO "B44"]
[WhiteElo "2549"]
[BlackElo "2354"]
[Annotator "TA"]
[PlyCount "72"]
[EventDate "2024.03.26"]
[EventType "tourn"]
[EventCountry "HUN"]
[SourceTitle "playchess.com"]
[Source "ChessBase"]
[SourceQuality "1"]
[TimeControl "5400+30"]

{[%evp 11,72,-5,31,24,31,0,31,29,43,27,64,52,80,31,19,-6,-29,-35,0,-47,-17,-75,6,-97,-103,-144,-141,-145,-135,-150,-101,-176,-107,-105,-86,-214,-190,-202,-200,-208,-210,-387,-387,-529,-477,-937,-357,-950,-471,-680,-433,-953,-815,-2390,-2325,-2352,-1631,-2246,-2152,-29991,-29991,-29991,-29992]} 1. e4 {[%emt 0:00:03]} c5 {[%emt 0:00:05]} 2. Nf3 {[%emt 0:00:05]} e6 {[%emt 0:00:07]} 3. d4 {[%emt 0:00:04]} cxd4 {[%emt 0:00:05]} 4. Nxd4 {[%emt 0:00:03]} Nc6 {[%emt 0:00:03]} 5. a3 {[%emt 0:00:21]} Nf6 {[%emt 0:03:01]} 6. Nc3 {[%emt 0:00:06]} Qc7 {[%emt 0:01:06]} 7. Be3 {[%emt 0:01:34]} Be7 {[%emt 0:01:16]} 8. f4 {[%emt 0:03:37]} d5 {[%emt 0:16:59]} 9. e5 {[%emt 0:07:02] White is slightly better.} Nd7 {[%emt 0:00:21]} 10. Qh5 {[%emt 0:05:30]} Nc5 {[%emt 0:05:15]} 11. O-O-O {[%emt 0:06:37]} a6 {[%emt 0:15:40] Against Ndb5} 12. h4 {[%emt 0:01:44]} ({White should try} 12. g4 $16) 12... Bd7 $14 {[%emt 0:02:29]} 13. Qg4 {[%emt 0:09:09]} O-O {[%emt 0:01:46]} 14. Nxc6 {[%emt 0:09:49]} Qxc6 {[%emt 0:04:15]} 15. Bd4 {[%emt 0:03:22]} (15. Rh3 $11 {might be stronger.}) 15... Rac8 {[%emt 0:03:30]} 16. Bd3 {[%emt 0:05:35]} (16. Qe2 $11) 16... Qc7 {[%emt 0:11:30]} (16... Nxd3+ $17 17. Rxd3 f6) 17. g3 {[%emt 0:14:44]} (17. Kb1 $11 {keeps the balance.}) 17... b5 {[%emt 0:01:28]} 18. Qe2 {[%emt 0:04:29][%cal Of4f5]} Nxd3+ {[%emt 0:03:56]} 19. Rxd3 {[%emt 0:04:41][%cal Of4f5]} Qb7 $1 {[%emt 0:03:47]} 20. Qf3 {[%emt 0:10:55][%cal Of4f5]} Rfd8 {[%emt 0:08:18]} (20... b4 21. axb4 Bxb4 (21... Qxb4 22. f5 $15) 22. h5 $15) (20... a5 $142 $1 21. Kb1 b4 22. axb4 axb4) 21. Rf1 {[%emt 0:02:10] [#]} (21. Ne2 $17 {keeps fighting.}) 21... Bf8 {[%emt 0:01:30]} (21... b4 22. axb4 Bxb4 23. h5 $15) (21... a5 $1 $19 {And now ...b4 would win.} 22. Ne2 b4 23. axb4 Bb5 (23... Bxb4 24. f5 $17) (23... axb4 24. b3 $19) (23... Qxb4 24. f5 $17) 24. bxa5 Qa6) 22. f5 {[%emt 0:01:48]} a5 {[%emt 0:06:20]} 23. f6 {[%emt 0:01:25] [#] White does not recover from this.} (23. fxe6 $17 {was called for.} Bxe6 24. Ne2) 23... b4 $1 $19 {[%emt 0:02:50]} 24. axb4 {[%emt 0:03:56]} axb4 {[%emt 0:00:04]} 25. fxg7 {[%emt 0:00:22]} Bxg7 {[%emt 0:00:03]} 26. Qxf7+ $2 {[%emt 0:01:02]} (26. Ne2 Bb5 27. Re3) 26... Kh8 {[%emt 0:00:01]} 27. Rf6 {[%emt 0:01:45]} bxc3 {[%emt 0:00:49]} 28. bxc3 {[%emt 0:00:32]} (28. Bxc3 $142 Qa7 (28... Rf8 $2 29. Qh5 $19) 29. Rd4) 28... Qa6 $2 {[%emt 0:03:30]} (28... Ra8 {[%cal Oa8a2] ...Ra2! is the strong threat.} 29. Kd2 Qb1) 29. Qe7 $2 {[%emt 0:01:28]} (29. h5 Qa3+ 30. Kd2) 29... Bb5 {[%emt 0:01:45]} ({Weaker is} 29... Bxf6 30. exf6) (29... Qa2 $142 30. Re3 Ba4 (30... Bxf6 31. exf6)) 30. Rdf3 {[%emt 0:00:38]} (30. Re3 $142 Re8 (30... Bxf6 31. exf6) 31. Qb4) 30... Re8 {[%emt 0:00:29]} ({And not} 30... Bxf6 31. exf6) 31. Qf7 {[%emt 0:00:42]} (31. Qa7 $142) 31... Be2 {[%emt 0:00:53] ...Qa1+ would now be deadly.} 32. Rf2 {[%emt 0:00:27]} Qa1+ {[%emt 0:00:38]} 33. Kd2 {[%emt 0:00:02]} Qd1+ {[%emt 0:00:05]} 34. Ke3 {[%emt 0:00:03]} Bh5 {[%emt 0:00:19]} 35. Qd7 {[%emt 0:00:33]} Qe1+ {[%emt 0:00:28]} 36. Kd3 {[%emt 0:00:05]} Bxf6 {[%emt 0:00:43] Weighted Error Value: White=1.35/Black=0.62.  Mistake:       	White=11    	Black=4      Inaccurate:     	White=4     	Black=4      OK:         	White=2     	Black=5      Best:        	---       	Black=2      Strong:       	---       	Black=1} 0-1

[Event "SixDays GM March 2024"]
[Site "Budapest"]
[Date "2024.04.03"]
[Round "8.3"]
[White "Grover, Sahaj"]
[Black "Konyves, Almos"]
[Result "1-0"]
[ECO "C77"]
[WhiteElo "2514"]
[BlackElo "2306"]
[Annotator "TA"]
[PlyCount "75"]
[EventDate "2024.03.26"]
[EventType "tourn"]
[EventCountry "HUN"]
[SourceTitle "playchess.com"]
[Source "ChessBase"]
[SourceQuality "1"]
[TimeControl "5400+30"]

{[%evp 14,75,-5,-15,0,-10,-8,-7,-5,0,2,12,41,15,24,8,4,3,97,83,89,86,84,87,64,66,82,85,91,26,18,32,10,0,253,255,249,238,255,0,0,0,651,693,666,674,983,943,29984,29984,29984,29984,29989,29990,29990,29991,29991,29991,29991,29992,29992,29993,29993,29994]} 1. e4 {[%emt 0:12:49]} e5 {[%emt 0:00:07]} 2. Nf3 {[%emt 0:00:10]} Nc6 {[%emt 0:00:07]} 3. Bb5 {[%emt 0:00:03][%cal Bf1b5,Bb5a4,Ba4b3][%mdl 32]} a6 {[%emt 0:00:06]} 4. Ba4 {[%emt 0:00:01]} Nf6 {[%emt 0:00:06]} 5. Qe2 {[%emt 0:00:02]} b5 {[%emt 0:00:12]} 6. Bb3 {[%emt 0:00:05]} Bc5 {[%emt 0:00:10]} 7. d3 {[%emt 0:00:04]} d6 {[%emt 0:00:48]} 8. c3 {[%emt 0:00:04]} Bb6 {[%emt 0:01:42]} 9. Bg5 {[%emt 0:01:08]} h6 {[%emt 0:01:55]} 10. Bh4 {[%emt 0:00:04]} g5 {[%emt 0:04:11] The position is equal.} 11. Bg3 {[%emt 0:00:05]} Bg4 {[%emt 0:00:12]} 12. Nbd2 {[%emt 0:01:13]} Qe7 {[%emt 0:05:51]} 13. a4 {[%emt 0:01:05] Hoping for axb5.} Rb8 {[%emt 0:00:55]} 14. axb5 {[%emt 0:00:30]} axb5 {[%emt 0:00:04]} 15. h4 {[%emt 0:03:15]} O-O {[%emt 0:06:29]} (15... Rg8 $11 {keeps the balance.}) 16. hxg5 {[%emt 0:00:17]} hxg5 {[%emt 0:00:05]} 17. Nf1 $1 {[%emt 0:01:20]} b4 {[%emt 0:10:08]} 18. Qd2 {[%emt 0:03:32]} Nh7 {[%emt 0:01:18]} 19. Bd5 $36 {[%emt 0:01:21][%mdl 2048] White fights for an advantage.} (19. cxb4 Bxf3 20. gxf3 Nd4 $17) 19... bxc3 {[%emt 0:02:04]} 20. bxc3 {[%emt 0:00:06]} Na5 {[%emt 0:04:47][%cal Bc6a5,Ba5b3,Bb3d2][%mdl 32]} 21. Ne3 {[%emt 0:22:00] White is more active.} (21. d4 $16) 21... Nb3 $11 {[%emt 0:08:57] [#]} 22. Nxg4 $1 {[%emt 0:00:13][%cal Be3g4,Bg4h6,Bh6f5][%mdl 32]} Nxd2 {[%emt 0:00:54]} 23. Kxd2 {[%emt 0:00:12] aiming for Nh6+.} Bc5 $2 {[%emt 0:14:24][%mdl 8192]} (23... Qd7 $11 24. Nh6+ Kh8) 24. Nh6+ $1 $18 {[%emt 0:03:02]} Kh8 {[%emt 0:00:02] [#]} 25. Nf5 $1 {[%emt 0:00:09]} Qd8 {[%emt 0:00:01] [#]} 26. Nxe5 $2 {[%emt 0:07:23] Excellent horsemanship.} Rb2+ $1 $11 {[%emt 0:06:55]} (26... dxe5 27. Bxe5+ f6 28. Rxh7+ Kxh7 29. Rh1+ Kg6 30. Rh6#) 27. Kc1 {[%emt 0:00:08] The board is on fire.} Ba3 $2 {[%emt 0:00:07][%mdl 8192]} 28. Rxa3 $18 {[%emt 0:12:22]} Qb8 {[%emt 0:00:03] White must now prevent ...Rb1+.} 29. Ra8 {[%emt 0:05:59]} Rb1+ {[%emt 0:05:46]} 30. Kd2 {[%emt 0:00:06]} Qb2+ {[%emt 0:00:44]} 31. Ke3 {[%emt 0:00:05][%cal Ra8f8] White mates.} Re1+ {[%emt 0:14:41]} 32. Rxe1 {[%emt 0:00:08]} Qb6+ {[%emt 0:00:02]} 33. d4 {[%emt 0:00:52]} dxe5 {[%emt 0:00:05]} 34. Rxf8+ {[%emt 0:00:35]} Nxf8 {[%emt 0:00:02]} 35. Bxf7 {[%emt 0:00:27]} exd4+ {[%emt 0:00:48]} 36. cxd4 {[%emt 0:00:04]} Ng6 {[%emt 0:00:11]} 37. Rh1+ {[%emt 0:00:12]} Nh4 {[%emt 0:00:05]} 38. Bxh4 {[%emt 0:00:11] Weighted Error Value: White=0.21 (precise) /Black=0.57.  Loses game:     	---       	Black=2      Missed win:     	White=1     	---        Mistake:       	White=1     	Black=1      Inaccurate:     	White=1     	Black=1      OK:         	White=5     	Black=8      Best:        	White=2     	Black=2      Strong:       	White=3     	Black=1} 1-0

[Event "SixDays GM March 2024"]
[Site "Budapest"]
[Date "2024.04.03"]
[Round "8.4"]
[White "Orujov, Farid"]
[Black "Mayank Chakraborty"]
[Result "0-1"]
[ECO "C79"]
[WhiteElo "2266"]
[BlackElo "2386"]
[Annotator "RC"]
[PlyCount "72"]
[EventDate "2024.03.26"]
[EventType "tourn"]
[EventCountry "HUN"]
[SourceTitle "playchess.com"]
[Source "ChessBase"]
[SourceQuality "1"]
[TimeControl "5400+30"]

1. e4 {[%emt 0:00:11]} e5 {[%emt 0:00:01]} 2. Nf3 {[%emt 0:00:16]} Nc6 {[%emt 0:00:02]} 3. Bb5 {[%emt 0:00:06]} a6 {[%emt 0:00:04]} 4. Ba4 {[%emt 0:00:03]} Nf6 {[%emt 0:00:05]} 5. O-O {[%emt 0:00:05]} d6 {[%emt 0:00:18]} 6. d4 {[%emt 0:07:11]} b5 {[%emt 0:00:14]} 7. dxe5 {[%emt 0:01:35]} dxe5 {[%emt 0:00:10]} 8. Qxd8+ {[%emt 0:00:06]} Nxd8 {[%emt 0:00:08]} 9. Bb3 {[%emt 0:00:04]} Nd7 {[%emt 0:00:21]} 10. a4 {[%emt 0:02:41]} b4 {[%emt 0:00:28]} 11. a5 {[%emt 0:02:46]} Bb7 {[%emt 0:03:43]} 12. Nbd2 {[%emt 0:02:18]} f6 {[%emt 0:00:26]} 13. Bc4 {[%emt 0:01:12]} Nc5 {[%emt 0:02:27]} 14. Re1 {[%emt 0:01:42]} Nf7 {[%emt 0:00:51]} 15. c3 {[%emt 0:22:03]} Nd6 {[%emt 0:07:01]} 16. Bd5 {[%emt 0:05:58]} O-O-O {[%emt 0:01:58]} 17. Bxb7+ {[%emt 0:12:53]} Ndxb7 {[%emt 0:05:52]} 18. Nc4 {[%emt 0:05:37]} Nd3 {[%emt 0:08:28]} 19. Re2 {[%emt 0:01:32]} Nbc5 {[%emt 0:01:30]} 20. Rb1 {[%emt 0:00:53]} g5 {[%emt 0:08:39]} 21. cxb4 {[%emt 0:10:02]} Nb3 {[%emt 0:03:44]} 22. Bd2 {[%emt 0:03:07]} g4 {[%emt 0:03:29]} 23. Ne1 {[%emt 0:00:49]} Nxb4 {[%emt 0:04:14]} 24. Bxb4 {[%emt 0:00:42]} Bxb4 {[%emt 0:00:02]} 25. Nc2 {[%emt 0:02:00]} Bc5 {[%emt 0:03:19]} 26. Ree1 {[%emt 0:04:50]} h5 {[%emt 0:06:50]} 27. Rbd1 {[%emt 0:01:39]} Kb7 {[%emt 0:02:44]} 28. N2e3 {[%emt 0:05:13]} Bd4 {[%emt 0:09:24]} 29. Nd5 {[%emt 0:01:01]} f5 {[%emt 0:00:34]} 30. Ne7 {[%emt 0:01:54]} fxe4 {[%emt 0:01:20]} 31. Ng6 {[%emt 0:02:06]} Rhe8 {[%emt 0:01:56]} 32. Ngxe5 {[%emt 0:00:02]} Rf8 {[%emt 0:01:16]} 33. Kh1 {[%emt 0:02:36]} Bxf2 {[%emt 0:00:56]} 34. Rxd8 {[%emt 0:00:12]} Rxd8 {[%emt 0:00:02]} 35. Rf1 {[%emt 0:00:15]} e3 {[%emt 0:00:17]} 36. g3 {[%emt 0:00:19]} e2 {[%emt 0:00:13]} 0-1

[Event "SixDays GM March 2024"]
[Site "Budapest"]
[Date "2024.04.03"]
[Round "8.5"]
[White "Kaasen, Tor Fredrik"]
[Black "Uskov, Artem"]
[Result "0-1"]
[ECO "B47"]
[WhiteElo "2449"]
[BlackElo "2392"]
[Annotator "TA"]
[PlyCount "76"]
[EventDate "2024.03.26"]
[EventType "tourn"]
[EventCountry "HUN"]
[SourceTitle "playchess.com"]
[Source "ChessBase"]
[SourceQuality "1"]
[TimeControl "5400+30"]

{[%evp 11,76,20,35,15,20,21,12,16,19,16,71,66,82,81,91,99,117,131,93,14,18,20,81,79,79,-29,-16,-118,-107,-104,-113,-122,-72,-70,-74,-75,-65,-90,-84,-70,-71,-106,-100,-144,-137,-110,-103,-114,-110,-386,-285,-249,-249,-237,-243,-251,-172,-174,-172,-174,-178,-183,-177,-185,-179,-624,-718]} 1. e4 {[%emt 0:00:02]} c5 {[%emt 0:07:38]} 2. Nf3 {[%emt 0:00:13]} e6 {[%emt 0:00:06]} 3. d4 {[%emt 0:00:29]} cxd4 {[%emt 0:00:05]} 4. Nxd4 {[%emt 0:00:07]} Nc6 {[%emt 0:00:03]} 5. Nc3 {[%emt 0:00:11]} Qc7 {[%emt 0:00:11]} 6. Be2 {[%emt 0:00:26]} Nf6 {[%emt 0:00:27]} 7. Ndb5 {[%emt 0:01:43]} Qb8 {[%emt 0:00:24]} 8. f4 {[%emt 0:00:12]} a6 {[%emt 0:02:28]} 9. e5 {[%emt 0:00:36] The position is equal.} axb5 {[%emt 0:02:10]} 10. exf6 {[%emt 0:00:09]} gxf6 {[%emt 0:01:21]} (10... b4 $11 {keeps the balance.} 11. fxg7 Bxg7) 11. Nxb5 $16 {[%emt 0:04:46]} Bc5 {[%emt 0:16:34]} 12. c3 {[%emt 0:13:07]} Na7 {[%emt 0:10:37]} 13. b4 {[%emt 0:03:59]} Bb6 {[%emt 0:02:44]} 14. Nd6+ {[%emt 0:11:45]} Ke7 {[%emt 0:00:45]} 15. Nxc8+ {[%emt 0:02:19]} (15. Nc4 $16 Bc7 16. O-O) 15... Rxc8 $11 {[%emt 0:04:58]} 16. Qd3 {[%emt 0:04:59][%cal Oa2a4]} Qd6 {[%emt 0:03:40]} (16... d5 $11) 17. Qxd6+ $16 {[%emt 0:05:30]} (17. Qxh7 $2 Rxc3 18. Bd2 Qd4 $19) 17... Kxd6 {[%emt 0:00:04]} 18. a4 {[%emt 0:03:58]} (18. Kd2 $16) 18... Rxc3 $11 {[%emt 0:08:10][%cal Bc8c3,Bc3b3,Bb3b4][%mdl 32]} 19. Bb2 {[%emt 0:15:30]} (19. Bd2 $11 Bd4 20. Rd1) 19... Rb3 $17 {[%emt 0:00:58][%csl LRb2,LRb4]} 20. Bxf6 {[%emt 0:04:32]} Rxb4 {[%emt 0:00:24][%cal Oa7c6]} 21. a5 {[%emt 0:12:04] [#]} Nc6 {[%emt 0:11:35]} 22. Bc3 {[%emt 0:03:05]} (22. axb6 $2 Rxa1+ 23. Bxa1 Rb1+ (23... Rxf4 $2 24. Bb2 $18) 24. Bd1 Rxa1 $19) 22... Rb3 {[%emt 0:00:55]} (22... Rxa5 23. Bxb4+ Nxb4 24. Rxa5 Bxa5 25. Kf2 $11) 23. O-O-O+ {[%emt 0:00:40]} (23. axb6 $2 Rxa1+ 24. Bxa1 Rb1+ (24... Rxb6 $2 25. O-O $18) 25. Bd1 Rxa1 $19) 23... Ke7 {[%emt 0:00:25]} 24. Kc2 {[%emt 0:00:09] [#]} Rxc3+ {[%emt 0:01:15]} 25. Kxc3 {[%emt 0:00:38]} Rxa5 {[%emt 0:00:03]} 26. Bd3 {[%emt 0:03:00]} f5 {[%emt 0:01:30]} 27. h3 {[%emt 0:01:50]} Bd4+ {[%emt 0:02:48]} 28. Kb3 {[%emt 0:00:37]} b5 {[%emt 0:00:01] Black is more active.} 29. g4 {[%emt 0:06:47]} b4 {[%emt 0:00:05] aiming for ...Ra3+.} 30. Rb1 $2 {[%emt 0:00:48][%mdl 8192] This costs White the game.} (30. Bb1 $17 {is the only way for White.}) 30... Ra3+ {[%emt 0:00:52]} 31. Kc2 {[%emt 0:00:06]} Be3 {[%emt 0:00:16]} (31... Rc3+ 32. Kd2 $17) 32. Rbd1 {[%emt 0:01:07]} Bxf4 {[%emt 0:01:55]} 33. gxf5 {[%emt 0:00:08]} Nd4+ {[%emt 0:01:38]} 34. Kb1 {[%emt 0:00:14]} exf5 {[%emt 0:05:12]} (34... Nxf5 35. Bxf5 exf5 36. Rhe1+ Kf6 37. Rxd7 $17) 35. Rhe1+ {[%emt 0:00:53]} Kf6 {[%emt 0:00:33]} 36. Bc4 {[%emt 0:00:26]} Be5 {[%emt 0:01:04][%cal Od4c6]} 37. Rd3 {[%emt 0:00:17] [#]} Ra5 $1 {[%emt 0:03:59] White must now prevent ...d5.} 38. Ba2 {[%emt 0:01:36] [#]} (38. Bg8) 38... b3 $1 {[%emt 0:00:34] Weighted Error Value: White=0.43/Black=0.17 (very precise) .  Loses game:     	White=1     	---        Mistake:       	White=4     	Black=3      Inaccurate:     	White=2     	Black=1      OK:         	White=9     	Black=13     Best:        	White=8     	Black=5      Strong:       	---       	Black=1      Brilliant:      	---       	Black=1} 0-1

[Event "SixDays GM March 2024"]
[Site "Budapest"]
[Date "2024.04.04"]
[Round "9.1"]
[White "Uskov, Artem"]
[Black "Horvath, Adam"]
[Result "1/2-1/2"]
[ECO "A30"]
[WhiteElo "2392"]
[BlackElo "2440"]
[Annotator "RC"]
[PlyCount "63"]
[EventDate "2024.03.26"]
[EventType "tourn"]
[EventCountry "HUN"]
[SourceTitle "playchess.com"]
[Source "ChessBase"]
[SourceQuality "1"]
[TimeControl "5400+30"]

1. c4 {[%emt 0:07:01]} c5 {[%emt 0:02:00]} 2. Nf3 {[%emt 0:00:25]} Nc6 {[%emt 0:00:25]} 3. Nc3 {[%emt 0:00:08]} g6 {[%emt 0:00:32]} 4. e3 {[%emt 0:00:07]} Nf6 {[%emt 0:00:04]} 5. d4 {[%emt 0:00:05]} cxd4 {[%emt 0:00:03]} 6. exd4 {[%emt 0:00:05]} d5 {[%emt 0:00:03]} 7. cxd5 {[%emt 0:00:06]} Nxd5 {[%emt 0:00:03]} 8. Qb3 {[%emt 0:00:09]} e6 {[%emt 0:00:30]} 9. Bb5 {[%emt 0:00:08]} Bg7 {[%emt 0:00:13]} 10. O-O {[%emt 0:00:16]} O-O {[%emt 0:00:03]} 11. Bxc6 {[%emt 0:00:06]} bxc6 {[%emt 0:00:04]} 12. Re1 {[%emt 0:00:20]} Ba6 {[%emt 0:01:38]} 13. Na4 {[%emt 0:22:05]} Nb6 {[%emt 0:00:30]} 14. Nc5 {[%emt 0:00:30]} Bc4 {[%emt 0:00:30]} 15. Qc3 {[%emt 0:00:30]} Bd5 {[%emt 0:00:30]} 16. Bg5 {[%emt 0:00:30]} Qb8 {[%emt 0:22:00]} 17. Rad1 {[%emt 0:07:34]} a5 {[%emt 0:01:59]} 18. b3 {[%emt 0:06:05]} a4 {[%emt 0:04:10]} 19. Nd2 {[%emt 0:02:06]} axb3 {[%emt 0:03:19]} 20. axb3 {[%emt 0:00:07]} h6 {[%emt 0:10:51]} 21. Be3 {[%emt 0:00:51]} Rd8 {[%emt 0:05:22]} 22. Nd3 {[%emt 0:08:17]} Nc8 {[%emt 0:15:16]} 23. Bf4 {[%emt 0:02:26]} Qb6 {[%emt 0:06:28]} 24. Be5 {[%emt 0:01:25]} Bf8 {[%emt 0:09:37]} 25. Nc5 {[%emt 0:02:47]} Nd6 {[%emt 0:00:43]} 26. Nc4 {[%emt 0:01:27]} Qb5 {[%emt 0:03:17]} 27. Nxd6 {[%emt 0:01:53]} Bxd6 {[%emt 0:00:11]} 28. Bxd6 {[%emt 0:00:06]} Rxd6 {[%emt 0:00:03]} 29. Qe3 {[%emt 0:00:09]} h5 {[%emt 0:01:55]} 30. Ra1 {[%emt 0:02:56]} Rxa1 {[%emt 0:05:25]} 31. Rxa1 {[%emt 0:00:02]} Qb8 {[%emt 0:00:05]} 32. Qg5 {[%emt 0:13:30]} 1/2-1/2

[Event "SixDays GM March 2024"]
[Site "Budapest"]
[Date "2024.04.04"]
[Round "9.2"]
[White "Mayank Chakraborty"]
[Black "Kaasen, Tor Fredrik"]
[Result "1/2-1/2"]
[ECO "C50"]
[WhiteElo "2386"]
[BlackElo "2449"]
[Annotator "TA"]
[PlyCount "123"]
[EventDate "2024.03.26"]
[EventType "tourn"]
[EventCountry "HUN"]
[SourceTitle "playchess.com"]
[Source "ChessBase"]
[SourceQuality "1"]
[TimeControl "5400+30"]

{[%evp 48,123,0,0,0,-46,0,-144,-133,-143,-94,-133,-90,-85,-57,-538,-539,-519,-558,-504,-500,-535,-454,-488,-280,-276,-288,-265,-233,-253,-268,-259,-250,-281,-291,-268,-276,-260,-196,-223,-204,-272,-237,-348,-331,-387,-292,-343,-324,-308,-311,-318,-65,-57,-48,-376,-378,-390,-375,-451,-498,-498,-495,-482,-440,-5254,0,0,0,0,0,0,0,0,0,0,0,0]} 1. e4 {[%emt 0:03:23]} e5 {[%emt 0:02:38]} 2. Nf3 {[%emt 0:00:02]} Nc6 {[%emt 0:00:09]} 3. Bc4 {[%emt 0:00:03]} Bc5 {[%emt 0:00:22]} 4. d3 {[%emt 0:00:06]} Nf6 {[%emt 0:00:36]} 5. O-O {[%emt 0:00:03]} O-O {[%emt 0:01:07]} 6. c3 {[%emt 0:00:05]} d6 {[%emt 0:00:52]} 7. h3 {[%emt 0:00:10]} a5 {[%emt 0:00:47]} 8. Re1 {[%emt 0:00:12]} Ba7 {[%emt 0:01:47]} 9. Nbd2 {[%emt 0:00:27]} Be6 {[%emt 0:01:34]} 10. Bb5 {[%emt 0:00:12]} Ne7 {[%emt 0:02:00]} 11. d4 {[%emt 0:00:26]} Ng6 {[%emt 0:00:39]} 12. Ba4 {[%emt 0:00:45]} c6 {[%emt 0:05:53]} 13. Bc2 Re8 {[%emt 0:00:30]} 14. Nf1 exd4 {[%emt 0:00:30]} 15. cxd4 {[%emt 0:13:46]} d5 {[%emt 0:10:02]} 16. e5 {[%emt 0:01:07]} Ne4 {[%emt 0:00:22]} 17. Ng3 {[%emt 0:06:18]} Nxg3 {[%emt 0:05:29]} 18. fxg3 {[%emt 0:00:02]} f6 {[%emt 0:00:30]} 19. Kh2 {[%emt 0:10:09]} Bf7 {[%emt 0:12:09]} 20. h4 {[%emt 0:12:02]} Nf8 {[%emt 0:03:26]} 21. exf6 {[%emt 0:06:16]} Qxf6 {[%emt 0:02:58]} 22. Ne5 {[%emt 0:05:59]} Bg6 {[%emt 0:04:25]} 23. Bg5 {[%emt 0:12:46]} Bxc2 {[%emt 0:02:22]} 24. Qxc2 {[%emt 0:00:08]} Qd6 {[%emt 0:00:26]} 25. Qf5 {[%emt 0:02:28]} Qe6 {[%emt 0:01:45]} (25... Bxd4 $2 26. Qf7+ Kh8 27. Qxe8 Bxe5 (27... Bg1+ $2 28. Kxg1 Rxe8 29. Nf7+ Kg8 30. Nxd6 $18) 28. Qxe5 $18 (28. Qxa8 Bxg3+ 29. Kh1 Qb8 $18)) 26. Qf2 {[%emt 0:04:37]} (26. Qd3 $11) 26... Ng6 {[%emt 0:03:21]} (26... h6 $15 27. Bf4 Qf6) 27. Bf4 {[%emt 0:02:50]} (27. Qd2 $11) 27... Qf6 $17 {[%emt 0:04:40]} 28. Nxg6 {[%emt 0:04:06]} hxg6 {[%emt 0:02:30]} (28... Bxd4 $142 29. Ne7+ (29. Rxe8+ Rxe8 30. Qd2 hxg6 $15) 29... Rxe7) 29. Qd2 {[%emt 0:05:38]} Qxd4 {[%emt 0:07:46]} 30. Qxa5 {[%emt 0:00:51]} Qxb2 {[%emt 0:03:42]} 31. Qxa7 $4 {[%emt 0:01:58][%mdl 8192]} ({Only move:} 31. Qc7 $1 $15) 31... Qxa1 $19 {[%emt 0:02:30]} 32. Qxa8 {[%emt 0:00:22]} Qxe1 {[%emt 0:00:09]} 33. Qxb7 {[%emt 0:00:04]} Qe6 {[%emt 0:01:39]} 34. a4 {[%emt 0:00:07]} Qc8 {[%emt 0:07:45]} 35. Qb6 {[%emt 0:00:32]} Re7 {[%emt 0:01:10]} (35... Re2 $142 36. a5 Qe6) 36. a5 $19 {[%emt 0:00:42]} Rb7 {[%emt 0:00:20]} 37. Qa6 {[%emt 0:01:10]} Kh7 {[%emt 0:00:56]} 38. Be3 {[%emt 0:01:35]} Rb8 {[%emt 0:00:46]} (38... c5 39. h5 gxh5 40. Bxc5 $14) 39. Qa7 {[%emt 0:02:56]} Ra8 {[%emt 0:01:30]} 40. Qc5 {[%emt 0:00:31]} Qc7 {[%emt 0:01:51]} 41. Bd2 {[%emt 0:00:05]} Ra6 {[%emt 0:01:29]} 42. Bc3 {[%emt 0:00:35]} Qa7 {[%emt 0:01:36]} 43. Qd6 {[%emt 0:00:57]} Qb7 {[%emt 0:01:22]} 44. Qc5 {[%emt 0:00:43]} Ra8 {[%emt 0:00:14]} 45. Qd4 {[%emt 0:01:21]} (45. Qe3 $142) 45... Qa7 $19 {[%emt 0:00:52]} 46. Qe5 {[%emt 0:01:11]} Rd8 {[%emt 0:00:32]} 47. Qg5 {[%emt 0:00:49]} Rf8 {[%emt 0:01:06]} 48. h5 {[%emt 0:01:17]} Qf7 {[%emt 0:00:41]} 49. a6 {[%emt 0:00:29]} gxh5 $2 {[%emt 0:00:44]} ({Black should play} 49... Ra8 $19 50. h6 Qf5 (50... gxh6 $2 51. Qe5 $19) (50... Rxa6 51. hxg7 Qf5 52. Qd8 $11)) 50. Bd4 $1 $15 {[%emt 0:00:29]} Qg6 {[%emt 0:00:48]} 51. Qe7 $2 {[%emt 0:01:02][%mdl 8192] [#]} (51. Qxg6+ $2 Kxg6 52. Kh3 Ra8 $19) ({White has to play} 51. Qd2 $1 $15) 51... Re8 $1 $19 {[%emt 0:00:15]} 52. Qd7 {[%emt 0:00:26] [#]} h4 $1 {[%emt 0:01:07]} (52... Ra8 53. Qb7 Rd8 54. a7 $11) 53. gxh4 {[%emt 0:00:35]} Re2 {[%emt 0:00:45]} 54. Qh3 {[%emt 0:00:16]} Qe4 {[%emt 0:00:59]} 55. a7 {[%emt 0:00:38]} Ra2 $1 {[%emt 0:00:25]} (55... Qxd4 $2 56. a8=Q (56. a8=B $2 Qe5+ 57. Qg3 c5 $19) 56... Qe5+ 57. Qg3 $18) 56. h5 {[%emt 0:00:33]} (56. Bf2 $142) 56... Ra4 $2 {[%emt 0:00:55]} ({Weaker is} 56... Qf4+ 57. Qg3 Qf7 (57... Qxd4 58. Qg6+ Kh8 59. Qe8+ Kh7 60. Qg6+ Kh8 61. Qe8+ Kh7 62. Qg6+ $11) 58. Qe5 $11) (56... Qxd4 $19 57. Qf5+ Kg8 58. Qe6+ Kf8 (58... Kh7 59. Qg6+ Kg8 60. Qe8+ Kh7 61. Qg6+ Kh8 62. Qe8+ Kh7 63. Qg6+ $11) 59. Qc8+ Kf7 60. Qf5+ Qf6 (60... Ke7 $2 61. Qg5+ Qf6 62. Qg3 $19)) 57. Qg3 $1 $11 {[%emt 0:00:08]} Qe7 {[%emt 0:00:44]} (57... Rxd4 $2 {too greedy.} 58. a8=Q $18 (58. a8=B $2 {loses.} c5 $19)) (57... Qxd4 $5 58. Qg6+ $8 Kh8 59. Qe8+ Kh7 60. Qg6+ Kh8 61. Qe8+ Kh7 62. Qg6+ $11) 58. Qf4 {[%emt 0:01:50]} c5 {[%emt 0:00:32]} 59. Qf5+ {[%emt 0:00:09]} Kh8 {[%emt 0:00:10]} 60. Qc8+ {[%emt 0:00:04]} Kh7 {[%emt 0:00:05]} 61. Qf5+ {[%emt 0:00:05]} Kh8 {[%emt 0:00:26]} 62. Qc8+ {[%emt 0:00:40]} 1/2-1/2